[Event "Titled Tuesday Blitz January 10 Early 2023"]
[White "Karabalis, Harilos"]
[Black "Arjun, Kalyan"]
[WhiteFideId "4621808"]
[BlackFideId "35018701"]
[WhiteElo "2252"]
[BlackElo "2516"]
[Result "0-1"]
[Round "02"]
[TimeControl "180+2"]
[Date "2023.01.10"]
[WhiteClock "0:00:08"]
[BlackClock "0:01:28"]

1. c4 {[%clk 0:03:00]}  b6 {[%clk 0:02:50]} 2. Nc3 {[%clk 0:03:00]}  Bb7 {[%clk 0:02:51]} 3. e4 {[%clk 0:03:00]}  e5 {[%clk 0:02:51]} 4. Nge2 {[%clk 0:03:00]}  Nc6 {[%clk 0:02:48]} 5. g3 {[%clk 0:03:00]}  g6 {[%clk 0:02:45]} 6. Bg2 {[%clk 0:03:00]}  Bg7 {[%clk 0:02:46]} 7. d3 {[%clk 0:03:00]}  Nge7 {[%clk 0:02:46]} 8. O-O {[%clk 0:02:59]}  O-O {[%clk 0:02:46]} 9. f4 {[%clk 0:02:56]}  f5 {[%clk 0:02:44]} 10. Be3 {[%clk 0:02:52]}  d6 {[%clk 0:02:41]} 11. Qd2 {[%clk 0:02:50]}  Nd4 {[%clk 0:02:40]} 12. Rf2 {[%clk 0:02:49]}  Qd7 {[%clk 0:02:34]} 13. Raf1 {[%clk 0:02:47]}  Nxe2+ {[%clk 0:02:24]} 14. Qxe2 {[%clk 0:02:45]}  Rae8 {[%clk 0:02:14]} 15. b3 {[%clk 0:02:42]}  exf4 {[%clk 0:02:13]} 16. Bxf4 {[%clk 0:02:28]}  Bxc3 {[%clk 0:02:12]} 17. Bh6 {[%clk 0:02:22]}  Bg7 {[%clk 0:02:08]} 18. Bxg7 {[%clk 0:02:22]}  Kxg7 {[%clk 0:02:09]} 19. Qb2+ {[%clk 0:02:18]}  Kg8 {[%clk 0:02:07]} 20. Qe2 {[%clk 0:01:39]}  fxe4 {[%clk 0:02:04]} 21. dxe4 {[%clk 0:01:38]}  Rxf2 {[%clk 0:01:51]} 22. Qxf2 {[%clk 0:01:37]}  Nc6 {[%clk 0:01:51]} 23. e5 {[%clk 0:01:35]}  Nd8 {[%clk 0:01:41]} 24. Bxb7 {[%clk 0:01:07]}  Nxb7 {[%clk 0:01:42]} 25. exd6 {[%clk 0:01:02]}  Nxd6 {[%clk 0:01:41]} 26. Qd4 {[%clk 0:00:59]}  Qe6 {[%clk 0:01:40]} 27. Rf2 {[%clk 0:00:34]}  Qe1+ {[%clk 0:01:39]} 28. Kg2 {[%clk 0:00:34]}  Qe4+ {[%clk 0:01:39]} 29. Qxe4 {[%clk 0:00:35]}  Rxe4 {[%clk 0:01:40]} 30. a4 {[%clk 0:00:33]}  Re3 {[%clk 0:01:39]} 31. Rb2 {[%clk 0:00:32]}  Ne4 {[%clk 0:01:38]} 32. a5 {[%clk 0:00:31]}  bxa5 {[%clk 0:01:36]} 33. Ra2 {[%clk 0:00:30]}  Rxb3 {[%clk 0:01:36]} 34. Rxa5 {[%clk 0:00:30]}  Rc3 {[%clk 0:01:37]} 35. Rxa7 {[%clk 0:00:29]}  Rxc4 {[%clk 0:01:37]} 36. h4 {[%clk 0:00:29]}  Nd6 {[%clk 0:01:36]} 37. h5 {[%clk 0:00:28]}  gxh5 {[%clk 0:01:35]} 38. Kf3 {[%clk 0:00:27]}  Kg7 {[%clk 0:01:35]} 39. Ra5 {[%clk 0:00:25]}  Kg6 {[%clk 0:01:35]} 40. Ra8 {[%clk 0:00:24]}  Rc3+ {[%clk 0:01:35]} 41. Kf4 {[%clk 0:00:23]}  Rc4+ {[%clk 0:01:32]} 42. Kf3 {[%clk 0:00:22]}  Nf7 {[%clk 0:01:32]} 43. Rg8+ {[%clk 0:00:20]}  Kf6 {[%clk 0:01:33]} 44. Rc8 {[%clk 0:00:18]}  Ne5+ {[%clk 0:01:31]} 45. Kf2 {[%clk 0:00:16]}  Rc2+ {[%clk 0:01:31]} 46. Ke3 {[%clk 0:00:16]}  Rc3+ {[%clk 0:01:32]} 47. Kf2 {[%clk 0:00:16]}  c5 {[%clk 0:01:30]} 48. Rc7 {[%clk 0:00:14]}  Kg6 {[%clk 0:01:29]} 49. Re7 {[%clk 0:00:13]}  Ng4+ {[%clk 0:01:29]} 50. Kg2 {[%clk 0:00:13]}  c4 {[%clk 0:01:30]} 51. Rc7 {[%clk 0:00:11]}  Rc1 {[%clk 0:01:29]} 52. Kh3 {[%clk 0:00:11]}  c3 {[%clk 0:01:29]} 53. Rc6+ {[%clk 0:00:09]}  Kf7 {[%clk 0:01:29]} 54. Rh6 {[%clk 0:00:08]}  Nxh6 {[%clk 0:01:28]} 0-1


[Site "https://www.chess.com"]

[Event "Titled Tuesday Blitz January 10 Early 2023"]
[White "Tanenbaum, Zachary"]
[Black "Buscar, Michael"]
[WhiteFideId "2060850"]
[BlackFideId "2603616"]
[WhiteElo "2261"]
[BlackElo "2041"]
[Result "1-0"]
[Round "02"]
[TimeControl "180+2"]
[Date "2023.01.10"]
[WhiteClock "0:00:06"]
[BlackClock "0:00:01"]

1. e4 {[%clk 0:02:59]}  c5 {[%clk 0:02:58]} 2. Nf3 {[%clk 0:02:59]}  Nc6 {[%clk 0:02:58]} 3. Nc3 {[%clk 0:02:58]}  Nf6 {[%clk 0:02:58]} 4. Bb5 {[%clk 0:02:56]}  g6 {[%clk 0:02:58]} 5. e5 {[%clk 0:02:55]}  Ng4 {[%clk 0:02:58]} 6. Qe2 {[%clk 0:02:56]}  Bg7 {[%clk 0:02:55]} 7. Bxc6 {[%clk 0:02:56]}  dxc6 {[%clk 0:02:48]} 8. h3 {[%clk 0:02:56]}  Nh6 {[%clk 0:02:48]} 9. d3 {[%clk 0:02:56]}  Nf5 {[%clk 0:02:47]} 10. O-O {[%clk 0:02:55]}  Nd4 {[%clk 0:02:47]} 11. Nxd4 {[%clk 0:02:53]}  cxd4 {[%clk 0:02:44]} 12. Nb1 {[%clk 0:02:48]}  Qd5 {[%clk 0:02:41]} 13. Re1 {[%clk 0:02:47]}  Be6 {[%clk 0:02:34]} 14. Bg5 {[%clk 0:02:43]}  h6 {[%clk 0:02:31]} 15. Bh4 {[%clk 0:02:43]}  g5 {[%clk 0:02:31]} 16. Bg3 {[%clk 0:02:42]}  O-O-O {[%clk 0:02:32]} 17. Nd2 {[%clk 0:02:40]}  h5 {[%clk 0:02:14]} 18. Nc4 {[%clk 0:02:35]}  h4 {[%clk 0:02:07]} 19. Bh2 {[%clk 0:02:35]}  g4 {[%clk 0:02:08]} 20. hxg4 {[%clk 0:02:32]}  h3 {[%clk 0:02:08]} 21. Qe4 {[%clk 0:02:31]}  hxg2 {[%clk 0:02:00]} 22. Qxd5 {[%clk 0:01:10]}  Bxd5 {[%clk 0:01:17]} 23. Nd2 {[%clk 0:01:09]}  Bh6 {[%clk 0:00:50]} 24. Ne4 {[%clk 0:01:06]}  Rdg8 {[%clk 0:00:50]} 25. f3 {[%clk 0:01:04]}  Be3+ {[%clk 0:00:29]} 26. Kxg2 {[%clk 0:01:04]}  Bxe4 {[%clk 0:00:22]} 27. dxe4 {[%clk 0:01:05]}  e6 {[%clk 0:00:21]} 28. Rad1 {[%clk 0:00:54]}  c5 {[%clk 0:00:21]} 29. c3 {[%clk 0:00:52]}  Kc7 {[%clk 0:00:14]} 30. cxd4 {[%clk 0:00:33]}  Bxd4 {[%clk 0:00:13]} 31. Re2 {[%clk 0:00:33]}  Kc6 {[%clk 0:00:11]} 32. b4 {[%clk 0:00:32]}  b6 {[%clk 0:00:10]} 33. Rc2 {[%clk 0:00:31]}  Kb5 {[%clk 0:00:07]} 34. bxc5 {[%clk 0:00:30]}  Bxc5 {[%clk 0:00:06]} 35. Rd7 {[%clk 0:00:29]}  a5 {[%clk 0:00:02]} 36. Rxf7 {[%clk 0:00:29]}  Rd8 {[%clk 0:00:01]} 37. f4 {[%clk 0:00:14]}  Rd3 {[%clk 0:00:01]} 38. f5 {[%clk 0:00:12]}  Rdh3 {[%clk 0:00:01]} 39. Bg3 {[%clk 0:00:12]}  Rh1 {[%clk 0:00:01]} 40. Kf3 {[%clk 0:00:06]} 1-0


[Site "https://www.chess.com"]

[Event "Titled Tuesday Blitz January 10 Early 2023"]
[White "Santos Ruiz, Miguel"]
[Black "Khalafova, Narmin"]
[WhiteFideId "22291482"]
[BlackFideId "13402625"]
[WhiteElo "2590"]
[BlackElo "2246"]
[Result "1-0"]
[Round "02"]
[TimeControl "180+2"]
[Date "2023.01.10"]
[WhiteClock "0:00:20"]
[BlackClock "0:00:35"]

1. e4 {[%clk 0:03:00]}  c5 {[%clk 0:02:55]} 2. Nf3 {[%clk 0:03:01]}  d6 {[%clk 0:02:54]} 3. c3 {[%clk 0:02:59]}  Nf6 {[%clk 0:02:53]} 4. Be2 {[%clk 0:03:00]}  g6 {[%clk 0:02:46]} 5. O-O {[%clk 0:02:59]}  Bg7 {[%clk 0:02:46]} 6. Bb5+ {[%clk 0:02:59]}  Nbd7 {[%clk 0:02:42]} 7. Re1 {[%clk 0:02:58]}  O-O {[%clk 0:02:41]} 8. d4 {[%clk 0:02:58]}  e5 {[%clk 0:02:32]} 9. dxe5 {[%clk 0:02:49]}  Nxe5 {[%clk 0:02:29]} 10. Nxe5 {[%clk 0:02:47]}  dxe5 {[%clk 0:02:29]} 11. f3 {[%clk 0:02:38]}  Be6 {[%clk 0:02:20]} 12. Qxd8 {[%clk 0:02:19]}  Rfxd8 {[%clk 0:02:16]} 13. Bf1 {[%clk 0:02:19]}  a6 {[%clk 0:01:41]} 14. Be3 {[%clk 0:02:16]}  c4 {[%clk 0:01:38]} 15. a4 {[%clk 0:02:14]}  b5 {[%clk 0:01:38]} 16. Na3 {[%clk 0:02:08]}  Rab8 {[%clk 0:01:29]} 17. axb5 {[%clk 0:02:07]}  axb5 {[%clk 0:01:29]} 18. Nc2 {[%clk 0:02:07]}  Nd7 {[%clk 0:01:19]} 19. Nb4 {[%clk 0:02:03]}  Rdc8 {[%clk 0:01:16]} 20. Ra7 {[%clk 0:01:56]}  Bf8 {[%clk 0:01:14]} 21. Rd1 {[%clk 0:01:56]}  Bc5 {[%clk 0:01:10]} 22. Bxc5 {[%clk 0:01:55]}  Nxc5 {[%clk 0:01:11]} 23. Kf2 {[%clk 0:01:41]}  Na4 {[%clk 0:01:10]} 24. Rd2 {[%clk 0:01:32]}  Rd8 {[%clk 0:01:10]} 25. Nd5 {[%clk 0:01:18]}  Kg7 {[%clk 0:00:47]} 26. Bxc4 {[%clk 0:01:10]}  Nxc3 {[%clk 0:00:46]} 27. bxc3 {[%clk 0:00:55]}  bxc4 {[%clk 0:00:46]} 28. Rc7 {[%clk 0:00:54]}  Rdc8 {[%clk 0:00:41]} 29. Rxc8 {[%clk 0:00:53]}  Rxc8 {[%clk 0:00:42]} 30. Rb2 {[%clk 0:00:46]}  Bxd5 {[%clk 0:00:37]} 31. exd5 {[%clk 0:00:46]}  Rc5 {[%clk 0:00:38]} 32. d6 {[%clk 0:00:41]}  Rd5 {[%clk 0:00:37]} 33. Rb6 {[%clk 0:00:40]}  Kf6 {[%clk 0:00:36]} 34. Rc6 {[%clk 0:00:35]}  Ke6 {[%clk 0:00:37]} 35. Rxc4 {[%clk 0:00:35]}  Rd2+ {[%clk 0:00:36]} 36. Kf1 {[%clk 0:00:29]}  Kxd6 {[%clk 0:00:35]} 37. Rc8 {[%clk 0:00:29]}  Rc2 {[%clk 0:00:32]} 38. h4 {[%clk 0:00:27]}  f5 {[%clk 0:00:32]} 39. Rh8 {[%clk 0:00:22]}  e4 {[%clk 0:00:29]} 40. fxe4 {[%clk 0:00:20]}  fxe4 {[%clk 0:00:30]} 41. Rxh7 {[%clk 0:00:21]}  e3 {[%clk 0:00:29]} 42. Rh6 {[%clk 0:00:20]}  Ke5 {[%clk 0:00:25]} 43. Rxg6 {[%clk 0:00:21]}  Kf4 {[%clk 0:00:26]} 44. h5 {[%clk 0:00:17]}  Rf2+ {[%clk 0:00:25]} 45. Ke1 {[%clk 0:00:17]}  Rc2 {[%clk 0:00:26]} 46. h6 {[%clk 0:00:17]}  e2 {[%clk 0:00:26]} 47. h7 {[%clk 0:00:16]}  Ke3 {[%clk 0:00:27]} 48. Re6+ {[%clk 0:00:17]}  Kd3 {[%clk 0:00:27]} 49. h8=Q {[%clk 0:00:16]}  Rc1+ {[%clk 0:00:26]} 50. Kf2 {[%clk 0:00:16]}  Rf1+ {[%clk 0:00:27]} 51. Kg3 {[%clk 0:00:17]}  e1=Q+ {[%clk 0:00:27]} 52. Rxe1 {[%clk 0:00:16]}  Rxe1 {[%clk 0:00:28]} 53. Qd4+ {[%clk 0:00:17]}  Kc2 {[%clk 0:00:29]} 54. c4 {[%clk 0:00:17]}  Rd1 {[%clk 0:00:29]} 55. Qxd1+ {[%clk 0:00:16]}  Kxd1 {[%clk 0:00:30]} 56. c5 {[%clk 0:00:17]}  Kd2 {[%clk 0:00:30]} 57. c6 {[%clk 0:00:18]}  Kd1 {[%clk 0:00:31]} 58. c7 {[%clk 0:00:19]}  Kd2 {[%clk 0:00:32]} 59. c8=Q {[%clk 0:00:19]}  Kd1 {[%clk 0:00:33]} 60. Qd7+ {[%clk 0:00:19]}  Kc2 {[%clk 0:00:33]} 61. Kf3 {[%clk 0:00:19]}  Kc3 {[%clk 0:00:34]} 62. Ke3 {[%clk 0:00:20]}  Kc2 {[%clk 0:00:35]} 63. Qc6+ {[%clk 0:00:20]} 1-0


[Site "https://www.chess.com"]

[Event "Titled Tuesday Blitz January 10 Early 2023"]
[White "Bobkov, Vadim"]
[Black "Flynn, Jacob"]
[WhiteFideId "34110876"]
[BlackFideId "2509393"]
[WhiteElo "2249"]
[BlackElo "2102"]
[Result "0-1"]
[Round "02"]
[TimeControl "180+2"]
[Date "2023.01.10"]
[WhiteClock "0:00:01"]
[BlackClock "0:00:21"]

1. d4 {[%clk 0:03:00]}  Nf6 {[%clk 0:02:59]} 2. c4 {[%clk 0:03:00]}  e6 {[%clk 0:03:00]} 3. Nc3 {[%clk 0:03:01]}  Bb4 {[%clk 0:03:00]} 4. f3 {[%clk 0:03:01]}  c5 {[%clk 0:03:00]} 5. d5 {[%clk 0:03:00]}  b5 {[%clk 0:03:00]} 6. e4 {[%clk 0:02:58]}  O-O {[%clk 0:03:00]} 7. Ne2 {[%clk 0:02:41]}  bxc4 {[%clk 0:02:53]} 8. a3 {[%clk 0:02:40]}  Ba5 {[%clk 0:02:50]} 9. d6 {[%clk 0:02:32]}  Nc6 {[%clk 0:02:32]} 10. g3 {[%clk 0:02:32]}  Ne5 {[%clk 0:02:28]} 11. Bg2 {[%clk 0:02:26]}  Nd3+ {[%clk 0:02:28]} 12. Kf1 {[%clk 0:02:26]}  Ba6 {[%clk 0:02:19]} 13. f4 {[%clk 0:02:14]}  Ng4 {[%clk 0:02:15]} 14. Qa4 {[%clk 0:02:08]}  Rb8 {[%clk 0:02:07]} 15. Rb1 {[%clk 0:02:03]}  Qb6 {[%clk 0:01:45]} 16. h3 {[%clk 0:02:01]}  Ngf2 {[%clk 0:01:44]} 17. Rg1 {[%clk 0:01:32]}  Nxc1 {[%clk 0:01:40]} 18. Kxf2 {[%clk 0:01:28]}  Nxe2 {[%clk 0:01:39]} 19. Kxe2 {[%clk 0:01:26]}  Bxc3 {[%clk 0:00:56]} 20. bxc3 {[%clk 0:01:21]}  Qxd6 {[%clk 0:00:56]} 21. Rgd1 {[%clk 0:01:09]}  Qc6 {[%clk 0:00:56]} 22. Qxc6 {[%clk 0:01:01]}  dxc6 {[%clk 0:00:57]} 23. e5 {[%clk 0:00:55]}  h5 {[%clk 0:00:51]} 24. Bxc6 {[%clk 0:00:51]}  Rb3 {[%clk 0:00:49]} 25. Ra1 {[%clk 0:00:40]}  Rxc3 {[%clk 0:00:48]} 26. Rdc1 {[%clk 0:00:40]}  Rxg3 {[%clk 0:00:47]} 27. Rd1 {[%clk 0:00:28]}  Rb8 {[%clk 0:00:41]} 28. Ra2 {[%clk 0:00:27]}  Rbb3 {[%clk 0:00:35]} 29. Rd8+ {[%clk 0:00:18]}  Kh7 {[%clk 0:00:34]} 30. Be4+ {[%clk 0:00:18]}  g6 {[%clk 0:00:35]} 31. Rd7 {[%clk 0:00:19]}  Kg7 {[%clk 0:00:33]} 32. Rxa7 {[%clk 0:00:17]}  Rxh3 {[%clk 0:00:20]} 33. Rxa6 {[%clk 0:00:13]}  Rh2+ {[%clk 0:00:20]} 34. Kd1 {[%clk 0:00:11]}  Rxa2 {[%clk 0:00:21]} 35. a4 {[%clk 0:00:08]}  Rg3 {[%clk 0:00:21]} 36. Bb1 {[%clk 0:00:01]}  Rg1# {[%clk 0:00:21]} 0-1


[Site "https://www.chess.com"]

[Event "Titled Tuesday Blitz January 10 Early 2023"]
[White "Wahedi, Ahmad Siar"]
[Black "Klukin, Kirill"]
[WhiteFideId "4651260"]
[BlackFideId "24199273"]
[WhiteElo "2274"]
[BlackElo "2390"]
[Result "0-1"]
[Round "02"]
[TimeControl "180+2"]
[Date "2023.01.10"]
[WhiteClock "0:01:10"]
[BlackClock "0:01:24"]

1. e4 {[%clk 0:03:00]}  g6 {[%clk 0:02:58]} 2. Nc3 {[%clk 0:03:00]}  Bg7 {[%clk 0:02:58]} 3. g3 {[%clk 0:03:00]}  e6 {[%clk 0:02:58]} 4. Bg2 {[%clk 0:03:01]}  Ne7 {[%clk 0:02:59]} 5. Nge2 {[%clk 0:03:00]}  O-O {[%clk 0:03:00]} 6. h4 {[%clk 0:02:58]}  h6 {[%clk 0:02:59]} 7. d3 {[%clk 0:02:57]}  d5 {[%clk 0:02:59]} 8. exd5 {[%clk 0:02:57]}  Nxd5 {[%clk 0:02:59]} 9. Nxd5 {[%clk 0:02:56]}  exd5 {[%clk 0:03:00]} 10. c3 {[%clk 0:02:55]}  c6 {[%clk 0:03:00]} 11. Be3 {[%clk 0:02:55]}  Bg4 {[%clk 0:03:00]} 12. Qd2 {[%clk 0:02:55]}  Kh7 {[%clk 0:03:00]} 13. d4 {[%clk 0:02:52]}  Nd7 {[%clk 0:02:59]} 14. O-O {[%clk 0:02:49]}  Re8 {[%clk 0:03:00]} 15. f3 {[%clk 0:02:49]}  Be6 {[%clk 0:02:56]} 16. Nf4 {[%clk 0:02:49]}  Nf8 {[%clk 0:02:53]} 17. Rae1 {[%clk 0:02:45]}  Qd7 {[%clk 0:02:53]} 18. h5 {[%clk 0:02:41]}  g5 {[%clk 0:02:51]} 19. Nxe6 {[%clk 0:02:41]}  Nxe6 {[%clk 0:02:31]} 20. f4 {[%clk 0:02:41]}  gxf4 {[%clk 0:02:14]} 21. Bxf4 {[%clk 0:02:40]}  Nxf4 {[%clk 0:02:15]} 22. Qxf4 {[%clk 0:02:40]}  Rxe1 {[%clk 0:02:15]} 23. Rxe1 {[%clk 0:02:40]}  Re8 {[%clk 0:02:15]} 24. Rxe8 {[%clk 0:02:34]}  Qxe8 {[%clk 0:02:16]} 25. Kf2 {[%clk 0:02:34]}  Qe7 {[%clk 0:02:12]} 26. Bh3 {[%clk 0:02:33]}  Bf6 {[%clk 0:02:11]} 27. Bf5+ {[%clk 0:02:31]}  Kg7 {[%clk 0:02:11]} 28. Qe3 {[%clk 0:02:06]}  Qd6 {[%clk 0:02:00]} 29. b3 {[%clk 0:02:02]}  Qa3 {[%clk 0:01:55]} 30. Qe2 {[%clk 0:02:01]}  Qc1 {[%clk 0:01:53]} 31. Bc2 {[%clk 0:01:59]}  Bg5 {[%clk 0:01:51]} 32. Qd3 {[%clk 0:01:58]}  Kf8 {[%clk 0:01:48]} 33. c4 {[%clk 0:01:57]}  Qh1 {[%clk 0:01:40]} 34. cxd5 {[%clk 0:01:51]}  cxd5 {[%clk 0:01:37]} 35. Qe2 {[%clk 0:01:50]}  Bf6 {[%clk 0:01:30]} 36. Qd2 {[%clk 0:01:10]}  Qh2+ {[%clk 0:01:25]} 37. Ke3 {[%clk 0:01:10]}  Bg5+ {[%clk 0:01:24]} 0-1


[Site "https://www.chess.com"]

[Event "Titled Tuesday Blitz January 10 Early 2023"]
[White "Papasimakopoulos, Alexandros"]
[Black "Nikologorsky, Matfei"]
[WhiteFideId "4244125"]
[BlackFideId "24102474"]
[WhiteElo "2401"]
[BlackElo "2182"]
[Result "1-0"]
[Round "02"]
[TimeControl "180+2"]
[Date "2023.01.10"]
[WhiteClock "0:01:30"]
[BlackClock "0:00:03"]

1. d4 {[%clk 0:03:00]}  Nf6 {[%clk 0:02:58]} 2. c4 {[%clk 0:03:01]}  e6 {[%clk 0:02:58]} 3. Nc3 {[%clk 0:03:01]}  Bb4 {[%clk 0:02:58]} 4. Qc2 {[%clk 0:03:01]}  O-O {[%clk 0:02:49]} 5. a3 {[%clk 0:03:01]}  Bxc3+ {[%clk 0:02:49]} 6. Qxc3 {[%clk 0:03:02]}  b6 {[%clk 0:02:46]} 7. Bg5 {[%clk 0:03:00]}  Bb7 {[%clk 0:02:43]} 8. f3 {[%clk 0:03:00]}  h6 {[%clk 0:02:41]} 9. Bh4 {[%clk 0:03:00]}  d5 {[%clk 0:02:16]} 10. e3 {[%clk 0:03:00]}  Nbd7 {[%clk 0:02:13]} 11. cxd5 {[%clk 0:02:59]}  exd5 {[%clk 0:01:48]} 12. Bd3 {[%clk 0:02:55]}  Re8 {[%clk 0:01:46]} 13. Ne2 {[%clk 0:02:55]}  c5 {[%clk 0:01:40]} 14. O-O {[%clk 0:02:54]}  Rc8 {[%clk 0:01:37]} 15. Qd2 {[%clk 0:02:54]}  Qe7 {[%clk 0:01:37]} 16. Bf2 {[%clk 0:02:53]}  Nf8 {[%clk 0:01:29]} 17. Ng3 {[%clk 0:02:52]}  g6 {[%clk 0:01:26]} 18. Rfe1 {[%clk 0:02:40]}  Ne6 {[%clk 0:01:20]} 19. Bb5 {[%clk 0:02:22]}  Red8 {[%clk 0:01:13]} 20. Rad1 {[%clk 0:02:18]}  h5 {[%clk 0:01:13]} 21. Ne2 {[%clk 0:02:12]}  a6 {[%clk 0:01:12]} 22. Ba4 {[%clk 0:02:11]}  Kg7 {[%clk 0:01:02]} 23. Bg3 {[%clk 0:02:10]}  Rh8 {[%clk 0:00:58]} 24. Be5 {[%clk 0:02:09]}  Kg8 {[%clk 0:00:49]} 25. Bc2 {[%clk 0:02:02]}  h4 {[%clk 0:00:48]} 26. Nf4 {[%clk 0:01:58]}  Nxf4 {[%clk 0:00:42]} 27. exf4 {[%clk 0:01:59]}  Rh5 {[%clk 0:00:36]} 28. f5 {[%clk 0:01:52]}  gxf5 {[%clk 0:00:28]} 29. Qf4 {[%clk 0:01:53]}  Rc6 {[%clk 0:00:17]} 30. Bxf5 {[%clk 0:01:52]}  Qf8 {[%clk 0:00:17]} 31. Bb1 {[%clk 0:01:48]}  Bc8 {[%clk 0:00:16]} 32. Bxf6 {[%clk 0:01:47]}  cxd4 {[%clk 0:00:08]} 33. Bxd4 {[%clk 0:01:47]}  Rhh6 {[%clk 0:00:06]} 34. Qg5+ {[%clk 0:01:42]}  Rhg6 {[%clk 0:00:06]} 35. Bxg6 {[%clk 0:01:41]}  Rxg6 {[%clk 0:00:07]} 36. Qxh4 {[%clk 0:01:40]}  f6 {[%clk 0:00:04]} 37. Qh5 {[%clk 0:01:39]}  Qg7 {[%clk 0:00:04]} 38. Qxd5+ {[%clk 0:01:38]}  Kh7 {[%clk 0:00:04]} 39. Qh5+ {[%clk 0:01:38]}  Rh6 {[%clk 0:00:04]} 40. Qe8 {[%clk 0:01:31]}  Bb7 {[%clk 0:00:03]} 41. Re7 {[%clk 0:01:30]} 1-0


[Site "https://www.chess.com"]

[Event "Titled Tuesday Blitz January 10 Early 2023"]
[White "Barria Zuniga, Daniel"]
[Black "Leschinsky, Gary"]
[WhiteFideId "3400816"]
[BlackFideId "30951321"]
[WhiteElo "2341"]
[BlackElo "1969"]
[Result "0-1"]
[Round "02"]
[TimeControl "180+2"]
[Date "2023.01.10"]
[WhiteClock "0:00:10"]
[BlackClock "0:00:11"]

1. d4 {[%clk 0:02:42]}  d5 {[%clk 0:02:59]} 2. c4 {[%clk 0:02:41]}  e6 {[%clk 0:02:59]} 3. Nf3 {[%clk 0:02:40]}  c6 {[%clk 0:02:58]} 4. Nc3 {[%clk 0:02:36]}  Nf6 {[%clk 0:02:51]} 5. Bg5 {[%clk 0:02:35]}  Be7 {[%clk 0:02:49]} 6. e3 {[%clk 0:02:33]}  O-O {[%clk 0:02:49]} 7. Qc2 {[%clk 0:02:32]}  Nbd7 {[%clk 0:02:48]} 8. O-O-O {[%clk 0:02:31]}  b5 {[%clk 0:02:36]} 9. c5 {[%clk 0:02:24]}  a5 {[%clk 0:02:32]} 10. Bd3 {[%clk 0:02:22]}  a4 {[%clk 0:02:30]} 11. a3 {[%clk 0:02:22]}  Qa5 {[%clk 0:02:30]} 12. Na2 {[%clk 0:02:21]}  Bb7 {[%clk 0:02:20]} 13. Nb4 {[%clk 0:02:16]}  Rfe8 {[%clk 0:02:18]} 14. Kb1 {[%clk 0:02:16]}  Bf8 {[%clk 0:02:05]} 15. Bf4 {[%clk 0:02:13]}  Be7 {[%clk 0:01:57]} 16. h3 {[%clk 0:02:12]}  Bd8 {[%clk 0:01:57]} 17. g4 {[%clk 0:02:04]}  g6 {[%clk 0:01:53]} 18. Ne5 {[%clk 0:01:53]}  Nxe5 {[%clk 0:01:52]} 19. Bxe5 {[%clk 0:01:54]}  Nd7 {[%clk 0:01:49]} 20. Bd6 {[%clk 0:01:51]}  e5 {[%clk 0:01:48]} 21. f4 {[%clk 0:01:50]}  exf4 {[%clk 0:01:18]} 22. exf4 {[%clk 0:01:50]}  Bf6 {[%clk 0:01:19]} 23. Be5 {[%clk 0:01:40]}  Nxe5 {[%clk 0:01:06]} 24. dxe5 {[%clk 0:01:33]}  Be7 {[%clk 0:01:06]} 25. f5 {[%clk 0:01:31]}  Qa7 {[%clk 0:01:04]} 26. Rc1 {[%clk 0:01:30]}  Bg5 {[%clk 0:01:03]} 27. Rce1 {[%clk 0:01:28]}  Be7 {[%clk 0:01:01]} 28. e6 {[%clk 0:01:27]}  Qxc5 {[%clk 0:00:56]} 29. exf7+ {[%clk 0:01:26]}  Kxf7 {[%clk 0:00:56]} 30. fxg6+ {[%clk 0:01:26]}  Kg7 {[%clk 0:00:52]} 31. gxh7 {[%clk 0:01:10]}  Qxc2+ {[%clk 0:00:51]} 32. Bxc2 {[%clk 0:01:11]}  c5 {[%clk 0:00:50]} 33. Nd3 {[%clk 0:01:11]}  d4 {[%clk 0:00:46]} 34. Rhf1 {[%clk 0:01:09]}  Bd6 {[%clk 0:00:34]} 35. g5 {[%clk 0:00:51]}  c4 {[%clk 0:00:33]} 36. Nb4 {[%clk 0:00:48]}  d3 {[%clk 0:00:32]} 37. Bd1 {[%clk 0:00:49]}  Bxb4 {[%clk 0:00:25]} 38. axb4 {[%clk 0:00:47]}  a3 {[%clk 0:00:26]} 39. Rxe8 {[%clk 0:00:25]}  Rxe8 {[%clk 0:00:25]} 40. Bh5 {[%clk 0:00:25]}  Rd8 {[%clk 0:00:21]} 41. Rf7+ {[%clk 0:00:20]}  Kh8 {[%clk 0:00:20]} 42. g6 {[%clk 0:00:19]}  Be4 {[%clk 0:00:15]} 43. Re7 {[%clk 0:00:17]}  Bxg6 {[%clk 0:00:10]} 44. Bxg6 {[%clk 0:00:16]}  d2 {[%clk 0:00:11]} 45. Bh5 {[%clk 0:00:10]}  d1=Q+ {[%clk 0:00:11]} 46. Bxd1 {[%clk 0:00:10]}  Rxd1+ {[%clk 0:00:12]} 47. Kc2 {[%clk 0:00:10]}  a2 {[%clk 0:00:11]} 0-1


[Site "https://www.chess.com"]

[Event "Titled Tuesday Blitz January 10 Early 2023"]
[White "Carrasco Miranda, Andres"]
[Black "Khumalo, Keith"]
[WhiteFideId "3405990"]
[BlackFideId "14319470"]
[WhiteElo "2240"]
[BlackElo "2099"]
[Result "0-1"]
[Round "02"]
[TimeControl "180+2"]
[Date "2023.01.10"]
[WhiteClock "0:00:26"]
[BlackClock "0:01:24"]

1. d4 {[%clk 0:02:53]}  Nf6 {[%clk 0:02:59]} 2. c4 {[%clk 0:02:50]}  g6 {[%clk 0:03:00]} 3. g3 {[%clk 0:02:50]}  Bg7 {[%clk 0:02:59]} 4. Bg2 {[%clk 0:02:50]}  O-O {[%clk 0:03:00]} 5. Nc3 {[%clk 0:02:49]}  d6 {[%clk 0:03:00]} 6. Nf3 {[%clk 0:02:49]}  c6 {[%clk 0:03:00]} 7. O-O {[%clk 0:02:49]}  Qa5 {[%clk 0:03:00]} 8. e4 {[%clk 0:02:46]}  Bg4 {[%clk 0:03:00]} 9. h3 {[%clk 0:02:42]}  Bxf3 {[%clk 0:03:00]} 10. Bxf3 {[%clk 0:02:43]}  e5 {[%clk 0:03:01]} 11. d5 {[%clk 0:02:42]}  cxd5 {[%clk 0:03:02]} 12. cxd5 {[%clk 0:02:42]}  a6 {[%clk 0:03:02]} 13. a3 {[%clk 0:02:36]}  Rc8 {[%clk 0:03:01]} 14. Be3 {[%clk 0:02:35]}  Nbd7 {[%clk 0:03:01]} 15. h4 {[%clk 0:02:28]}  h5 {[%clk 0:03:01]} 16. Bg2 {[%clk 0:02:27]}  Kh7 {[%clk 0:03:01]} 17. Bh3 {[%clk 0:02:27]}  Bh6 {[%clk 0:02:59]} 18. Qd2 {[%clk 0:02:25]}  Bxe3 {[%clk 0:02:58]} 19. Qxe3 {[%clk 0:02:26]}  Kg7 {[%clk 0:02:57]} 20. f4 {[%clk 0:02:21]}  Qc5 {[%clk 0:02:52]} 21. Qxc5 {[%clk 0:02:18]}  Rxc5 {[%clk 0:02:52]} 22. f5 {[%clk 0:02:14]}  Nb6 {[%clk 0:02:44]} 23. fxg6 {[%clk 0:02:13]}  fxg6 {[%clk 0:02:44]} 24. Rf2 {[%clk 0:02:08]}  Rf8 {[%clk 0:02:43]} 25. Raf1 {[%clk 0:02:05]}  Nh7 {[%clk 0:02:43]} 26. Be6 {[%clk 0:01:53]}  Rxf2 {[%clk 0:02:40]} 27. Rxf2 {[%clk 0:01:53]}  Nf6 {[%clk 0:02:39]} 28. Kf1 {[%clk 0:01:47]}  Nc4 {[%clk 0:02:33]} 29. Ke1 {[%clk 0:01:44]}  Nxa3 {[%clk 0:02:30]} 30. bxa3 {[%clk 0:01:39]}  Rxc3 {[%clk 0:02:30]} 31. Rb2 {[%clk 0:01:39]}  b5 {[%clk 0:02:28]} 32. a4 {[%clk 0:01:39]}  Nxe4 {[%clk 0:01:59]} 33. axb5 {[%clk 0:01:36]}  Re3+ {[%clk 0:01:59]} 34. Kf1 {[%clk 0:01:34]}  axb5 {[%clk 0:01:57]} 35. Rxb5 {[%clk 0:01:34]}  Rf3+ {[%clk 0:01:53]} 36. Ke1 {[%clk 0:01:27]}  Nc5 {[%clk 0:01:44]} 37. Ke2 {[%clk 0:00:43]}  Rxg3 {[%clk 0:01:42]} 38. Rb6 {[%clk 0:00:43]}  Nxe6 {[%clk 0:01:26]} 39. dxe6 {[%clk 0:00:44]}  Kf6 {[%clk 0:01:26]} 40. Rxd6 {[%clk 0:00:44]}  Rg4 {[%clk 0:01:24]} 41. Kf3 {[%clk 0:00:43]}  Ke7 {[%clk 0:01:24]} 42. Ra6 {[%clk 0:00:38]}  Rxh4 {[%clk 0:01:24]} 43. Ke3 {[%clk 0:00:31]}  Rf4 {[%clk 0:01:23]} 44. Rb6 {[%clk 0:00:28]}  h4 {[%clk 0:01:23]} 45. Ra6 {[%clk 0:00:25]}  g5 {[%clk 0:01:23]} 46. Rb6 {[%clk 0:00:25]}  g4 {[%clk 0:01:23]} 47. Rb7+ {[%clk 0:00:25]}  Kxe6 {[%clk 0:01:23]} 48. Rh7 {[%clk 0:00:26]}  h3 {[%clk 0:01:24]} 49. Rh6+ {[%clk 0:00:26]}  Kd5 {[%clk 0:01:24]} 0-1


[Site "https://www.chess.com"]